bitfinex/quotes_SOLUSD_20241213
["timestamp","ask_amount","ask_price","bid_price","bid_amount"]
[1734048855907,8.19684124,226.85,226.81,20.0]
[1734048856213,0.65926895,226.9,226.82,8.19684124]
[1734048856510,7.832,226.91,226.85,8.19684124]
[1734048856687,7.832,226.91,226.87,8.19684124]
[1734048856881,7.832,226.91,226.8,20.66123718]
[1734048856882,1.5132,226.91,226.88,8.19684124]
[1734048857283,1.5132,226.91,226.87,8.19684124]
[1734048857887,1.5132,226.91,226.86,8.19684124]
[1734048862416,0.65926895,226.9,226.85,8.19684124]
[1734048862623,2.17246895,226.91,226.88,20.0]
[1734048863403,2.17246895,226.91,226.85,8.19684124]
[1734048863918,1.5132,226.91,226.81,24.6890151]
[1734048864096,1.5132,226.91,226.87,8.19684124]
[1734048865507,1.5132,226.91,226.86,8.19684124]
[1734048869617,6.5974,226.96,226.9,8.19684124]
[1734048869995,6.5974,226.96,226.91,8.19684124]
[1734048871800,1.5836,226.97,226.91,8.19684124]
[1734048873609,1.5836,226.97,226.92,8.19684124]
[1734048874510,6.4701,227.02,226.96,8.19684124]
[1734048874704,6.4701,227.02,226.97,8.19684124]
[1734048875697,0.65926895,227.01,226.96,8.19684124]
[1734048876013,7.12936895,227.02,226.96,8.19684124]
[1734048880214,8.19684124,227.01,226.94,8.19684124]
[1734048880515,8.19684124,226.99,226.87,2.21718222]
[1734048880696,0.65926895,226.98,226.92,8.19684124]
[1734048881611,8.19684124,226.97,226.9,8.19684124]
[1734048881912,0.65926895,226.96,226.9,8.19684124]
[1734048882107,0.65926895,226.96,226.91,8.19684124]
[1734048884412,9.72824124,226.96,226.89,8.19684124]
[1734048884617,9.72824124,226.96,226.84,23.776884]
[1734048884618,8.85611019,226.95,226.88,8.19684124]
[1734048885616,8.85611019,226.95,226.89,8.19684124]
[1734048886600,8.19684124,226.94,226.88,8.19684124]
[1734048886819,0.65926895,226.93,226.88,8.19684124]
[1734048887300,8.85611019,226.93,226.86,8.19684124]
[1734048887506,8.85611019,226.93,226.84,0.25098]
[1734048887507,8.19684124,226.92,226.85,8.19684124]
[1734048887825,8.85611019,226.91,226.84,8.19684124]
[1734048888403,0.65926895,226.91,226.85,8.19684124]
[1734048889501,0.65926895,226.91,226.86,8.19684124]
[1734048890526,0.65926895,226.91,226.85,8.19684124]
[1734048891304,8.85611019,226.91,226.84,8.19684124]
[1734048891517,0.65926895,226.91,226.85,8.19684124]
[1734048892823,0.65926895,226.91,226.79,0.66116363]
[1734048892824,8.19684124,226.9,226.81,20.0]
[1734048893028,8.19684124,226.87,226.81,20.0]
[1734048893326,8.85611019,226.86,226.83,20.0]
[1734048893712,8.85611019,226.86,226.76,1.79268394]
[1734048893926,8.19684124,226.85,226.78,8.19684124]
[1734048894129,0.65926895,226.84,226.78,8.19684124]
[1734048894504,0.65926895,226.84,226.79,8.19684124]
[1734048894716,0.65926895,226.85,226.81,8.19684124]
[1734048894922,1.5699,226.88,226.82,8.19684124]
[1734048895322,2.22916895,226.88,226.83,8.19684124]
[1734048896006,2.22916895,226.88,226.82,8.19684124]
[1734048896515,2.22916895,226.88,226.83,8.19684124]
[1734048896714,1.5699,226.88,226.83,8.19684124]
[1734048899307,0.65926895,226.87,226.83,8.19684124]
[1734048899513,0.65926895,226.87,226.82,8.19684124]
[1734048899921,2.22916895,226.88,226.82,8.19684124]
[1734048900411,1.5699,226.88,226.83,8.19684124]
[1734048901336,1.5699,226.88,226.82,8.19684124]
[1734048901926,1.5699,226.88,226.84,8.19684124]
[1734048903135,0.65926895,226.87,226.8,8.19684124]
[1734048905424,8.19684124,226.85,226.77,1.77995242]
[1734048905622,8.85611019,226.84,226.77,8.19684124]
[1734048905813,8.85611019,226.84,226.76,20.0]
[1734048906019,8.85611019,226.84,226.77,8.19684124]
[1734048906820,8.19684124,226.82,226.75,8.19684124]
[1734048907028,0.65926895,226.81,226.75,8.19684124]
[1734048907425,8.85611019,226.81,226.74,8.19684124]
[1734048908437,0.65926895,226.81,226.75,8.19684124]
[1734048908638,8.19684124,226.83,226.75,8.19684124]
[1734048908840,9.80214124,226.8,226.73,8.19684124]
[1734048909038,8.85611019,226.79,226.7,0.12549]
[1734048909339,8.85611019,226.79,226.69,0.66144322]
[1734048909340,0.65926895,226.79,226.73,8.19684124]
[1734048910253,1.6053,226.8,226.75,8.19684124]
[1734048910431,1.6053,226.8,226.77,8.19684124]
[1734048910626,10.42961019,226.85,226.78,8.19684124]
[1734048910820,1.5735,226.85,226.8,8.19684124]
[1734048911625,1.5735,226.85,226.79,8.19684124]
[1734048912049,1.5735,226.85,226.8,8.19684124]
[1734048913329,1.5735,226.85,226.81,8.19684124]
[1734048914742,1.5735,226.85,226.8,8.19684124]
[1734048916932,1.5735,226.85,226.79,8.19684124]
[1734048917131,1.5735,226.85,226.77,0.12549]
[1734048917132,0.65926895,226.84,226.81,20.0]
[1734048917327,8.85611019,226.84,226.74,44.027864]
[1734048917529,8.19684124,226.83,226.78,20.0]
[1734048917729,0.65926895,226.82,226.78,20.0]
[1734048918049,0.65926895,226.82,226.73,8.19684124]
[1734048918050,8.19684124,226.8,226.73,8.19684124]
[1734048918231,0.65926895,226.79,226.72,8.19684124]
[1734048918629,8.85611019,226.79,226.72,8.19684124]
[1734048919143,0.65926895,226.79,226.72,8.19684124]
[1734048920768,8.19684124,226.78,226.72,0.12549]
[1734048920942,1.5735,226.85,226.69,0.12549]
[1734048920943,8.19684124,226.76,226.69,8.19684124]
[1734048921138,0.65926895,226.75,226.69,8.19684124]
[1734048921533,0.65926895,226.75,226.66,2.41050625]
[1734048921728,0.65926895,226.75,226.66,0.66156368]
[1734048922072,0.65926895,226.75,226.67,8.19684124]
[1734048922073,8.19684124,226.74,226.67,8.19684124]
[1734048922258,8.85611019,226.73,226.62,0.66166212]
[1734048922470,8.19684124,226.7,226.64,8.19684124]
[1734048922758,0.65926895,226.69,226.63,8.19684124]
[1734048922948,8.19684124,226.68,226.61,8.19684124]
[1734048923146,0.65926895,226.67,226.61,8.19684124]
[1734048924151,8.19684124,226.7,226.63,8.19684124]
[1734048924350,0.65926895,226.69,226.64,8.19684124]
[1734048925462,0.65926895,226.69,226.59,0.91277556]
[1734048925463,0.65926895,226.75,226.69,0.12549]
[1734048925650,0.65926895,226.75,226.7,8.19684124]
[1734048925957,8.85611019,226.75,226.69,8.32233124]
[1734048926171,8.19684124,226.73,226.67,0.12549]
[1734048926349,0.65926895,226.72,226.67,0.12549]
[1734048926532,0.65926895,226.72,226.61,0.66165188]
[1734048926533,8.85611019,226.72,226.63,20.0]
[1734048926737,8.19684124,226.71,226.64,8.32233124]
[1734048926948,0.65926895,226.7,226.64,8.32233124]
[1734048927742,0.65926895,226.7,226.65,8.19684124]
[1734048927954,0.65926895,226.71,226.66,0.12549]
[1734048928261,0.65926895,226.71,226.63,8.19684124]
[1734048928262,8.19684124,226.7,226.63,8.19684124]
[1734048928435,8.85611019,226.69,226.62,8.19684124]
[1734048928638,0.65926895,226.69,226.63,8.19684124]
[1734048929350,8.85611019,226.69,226.62,8.19684124]
[1734048929555,8.85611019,226.69,226.63,0.12549]
[1734048930139,0.65926895,226.69,226.63,8.32233124]
[1734048930980,0.65926895,226.69,226.65,8.19684124]
[1734048931256,8.19684124,226.7,226.63,8.19684124]
[1734048931471,0.65926895,226.69,226.63,8.19684124]
[1734048931760,8.85611019,226.69,226.62,8.32233124]
[1734048932355,1.568,226.67,226.62,0.12549]
[1734048932546,0.65926895,226.66,226.62,0.12549]
[1734048932968,0.65926895,226.66,226.61,8.19684124]
[1734048933257,0.65926895,226.66,226.58,0.5212444]
[1734048933258,8.19684124,226.62,226.58,0.5212444]
[1734048933459,8.85611019,226.61,226.58,0.5212444]
[1734048933640,8.19684124,226.6,226.58,0.5212444]
[1734048933840,8.85611019,226.59,226.58,0.5212444]
[1734048934336,10.42411019,226.59,226.58,0.5212444]
[1734048935091,1.568,226.59,226.58,0.5212444]
[1734048936442,10.42411019,226.59,226.58,0.5212444]
[1734048939442,2.22726895,226.59,226.58,0.5212444]
[1734048939843,10.42411019,226.59,226.58,0.5212444]
[1734048943266,16.64571019,226.59,226.58,0.5212444]
[1734048945762,1.568,226.59,226.58,0.5212444]
[1734048945965,8.19684124,226.61,226.58,0.5212444]
[1734048946170,0.65926895,226.6,226.58,0.5212444]
[1734048947968,8.85611019,226.6,226.58,0.5212444]
[1734048949369,8.19684124,226.59,226.58,0.5212444]
[1734048950851,8.19684124,226.6,226.58,0.5212444]
[1734048951053,8.19684124,226.61,226.58,0.5212444]
[1734048951252,0.65926895,226.6,226.58,0.5212444]
[1734048953164,8.19684124,226.59,226.58,0.5212444]
[1734048955462,0.65926895,226.63,226.58,0.5212444]
[1734048955663,8.19684124,226.6,226.58,0.5212444]
[1734048956659,8.85611019,226.59,226.58,0.5212444]
[1734048957196,8.19684124,226.61,226.58,0.5212444]
[1734048957351,8.19684124,226.62,226.58,0.5212444]
[1734048957685,0.65926895,226.61,226.58,0.5212444]
[1734048958074,8.85611019,226.61,226.58,0.5212444]
[1734048958268,8.19684124,226.6,226.58,0.5212444]
[1734048958468,0.65926895,226.59,226.58,0.5212444]
[1734048958659,8.19684124,226.6,226.58,0.5212444]
[1734048958859,0.65926895,226.59,226.58,0.5212444]
[1734048959059,8.19684124,226.6,226.58,0.5212444]
[1734048959973,8.19684124,226.61,226.58,0.5212444]
[1734048960178,0.65926895,226.6,226.58,0.5212444]
[1734048960789,8.19684124,226.59,226.58,0.5212444]
[1734048961461,8.85611019,226.59,226.58,0.5212444]
[1734048961777,0.65926895,226.59,226.58,0.5212444]
[1734048961961,8.19684124,226.6,226.58,0.5212444]
[1734048962167,0.65926895,226.61,226.58,0.5212444]
[1734048963379,8.19684124,226.59,226.58,0.5212444]
[1734048964282,0.65926895,226.63,226.58,0.5212444]
[1734048964486,8.19684124,226.62,226.58,0.5212444]
[1734048964688,0.65926895,226.61,226.58,0.5212444]
[1734048965072,8.85611019,226.61,226.58,0.5212444]
[1734048966376,8.19684124,226.6,226.58,0.5212444]
[1734048966885,0.65926895,226.63,226.58,0.5212444]
[1734048967073,8.19684124,226.65,226.59,0.12549]
[1734048967272,0.65926895,226.68,226.59,8.32233124]
[1734048967478,8.19684124,226.66,226.61,0.12549]
[1734048968267,38.35927524,226.76,226.64,8.19684124]
[1734048968268,8.19684124,226.71,226.64,8.19684124]
[1734048968484,0.65926895,226.7,226.64,8.19684124]
[1734048968688,8.19684124,226.69,226.64,0.12549]
[1734048968891,0.65926895,226.68,226.64,0.12549]
[1734048969072,8.19684124,226.7,226.64,0.12549]
[1734048969273,8.19684124,226.72,226.66,8.19684124]
[1734048969485,8.85611019,226.72,226.66,8.19684124]
[1734048969667,0.65926895,226.71,226.66,8.19684124]
[1734048969873,8.19684124,226.7,226.64,28.19684124]
[1734048970067,0.65926895,226.69,226.65,0.12549]
[1734048971265,8.19684124,226.67,226.62,20.0]
[1734048971495,8.19684124,226.67,226.61,0.12549]
[1734048971690,8.19684124,226.68,226.61,8.19684124]
[1734048971892,8.19684124,226.68,226.62,0.12549]
[1734048972296,0.65926895,226.67,226.62,0.12549]
[1734048973093,8.19684124,226.66,226.61,0.12549]
[1734048973417,0.65926895,226.65,226.59,12.97062217]
[1734048973575,0.65926895,226.65,226.59,12.84513217]
[1734048974988,0.65926895,226.65,226.6,0.12549]
[1734048975195,13.50440112,226.65,226.59,0.12549]
[1734048975509,12.84513217,226.61,226.58,0.5212444]
[1734048975675,0.65926895,226.6,226.58,0.5212444]
[1734048976076,12.84513217,226.62,226.58,0.5212444]
[1734048976288,0.65926895,226.61,226.58,0.5212444]
[1734048977225,13.50440112,226.61,226.58,0.5212444]
[1734048978017,12.84513217,226.6,226.58,0.5212444]
[1734048978188,0.65926895,226.59,226.58,0.5212444]
[1734048979178,12.84513217,226.64,226.58,0.5212444]
[1734048979375,13.50440112,226.63,226.58,0.5212444]
[1734048979997,0.65926895,226.63,226.58,0.5212444]
[1734048981182,0.65926895,226.66,226.59,12.97062217]
[1734048981694,13.50440112,226.66,226.59,12.97062217]
[1734048983107,12.84513217,226.65,226.59,0.12549]
[1734048983299,0.65926895,226.64,226.59,0.12549]
[1734048984701,0.65926895,226.64,226.58,13.36637657]
[1734048985014,0.65926895,226.64,226.58,0.5212444]
[1734048985015,12.84513217,226.61,226.58,0.5212444]
[1734048985192,0.65926895,226.6,226.58,0.5212444]
[1734048985391,13.50440112,226.6,226.58,0.5212444]
[1734048986985,0.65926895,226.6,226.58,0.5212444]
[1734048987385,0.65926895,226.61,226.58,0.5212444]
[1734048990403,12.84513217,226.63,226.58,0.5212444]
[1734048990599,13.50440112,226.65,226.58,13.36637657]
[1734048991689,13.50440112,226.65,226.58,0.5212444]
[1734048991888,12.84513217,226.64,226.58,0.5212444]
[1734048992112,0.65926895,226.63,226.58,0.5212444]
[1734048992410,12.84513217,226.66,226.59,0.12549]
[1734048992608,0.65926895,226.65,226.59,12.97062217]
[1734048992796,0.65926895,226.66,226.59,12.97062217]
[1734048993501,13.50440112,226.66,226.59,12.97062217]
[1734048993693,0.65926895,226.66,226.59,12.97062217]
[1734048994095,0.65926895,226.66,226.6,12.84513217]
[1734048994304,0.65926895,226.66,226.61,0.12549]
[1734048994819,0.65926895,226.7,226.65,12.84513217]
[1734048995032,0.65926895,226.71,226.66,0.12549]
[1734048995191,8.21708814,226.72,226.66,0.12549]
[1734048995505,0.65926895,226.71,226.66,0.12549]
[1734048995814,1.5551,226.75,226.66,8.34257814]
[1734048995815,8.87635709,226.74,226.66,8.34257814]
[1734048996925,8.21708814,226.73,226.66,8.34257814]
[1734048997124,0.65926895,226.72,226.66,8.34257814]
[1734048997622,8.21708814,226.71,226.65,0.12549]
[1734048997815,0.65926895,226.7,226.65,0.12549]
[1734048998018,8.21708814,226.72,226.65,8.34257814]
[1734048998218,8.21708814,226.73,226.67,0.12549]
[1734048998717,8.87635709,226.74,226.67,8.34257814]
[1734049001319,8.87635709,226.74,226.67,0.12549]
[1734049001513,8.21708814,226.73,226.66,0.12549]
[1734049001710,8.21708814,226.71,226.66,0.12549]
[1734049001910,0.65926895,226.7,226.65,0.12549]
[1734049002230,8.21708814,226.72,226.65,8.34257814]
[1734049002398,0.65926895,226.71,226.65,8.34257814]
[1734049002602,17.5947,226.79,226.66,8.21708814]
[1734049002603,8.21708814,226.73,226.66,8.21708814]
[1734049002801,0.65926895,226.72,226.67,0.12549]
[1734049003499,0.65926895,226.72,226.67,8.34257814]
[1734049003719,0.65926895,226.73,226.67,8.34257814]
[1734049004817,8.87635709,226.73,226.67,0.12549]
[1734049005026,8.87635709,226.73,226.66,0.12549]
[1734049005399,8.21708814,226.72,226.66,0.12549]
[1734049005722,8.21708814,226.73,226.66,0.12549]
[1734049005927,8.21708814,226.73,226.66,8.34257814]
[1734049006628,8.21708814,226.75,226.68,8.34257814]
[1734049006923,0.65926895,226.78,226.7,8.34257814]
[1734049007128,8.87635709,226.78,226.71,8.21708814]
[1734049007337,8.21708814,226.79,226.72,8.34257814]
[1734049007712,0.65926895,226.8,226.74,8.34257814]
[1734049007938,8.21708814,226.81,226.75,0.12549]
[1734049008230,0.65926895,226.83,226.76,8.21708814]
[1734049008451,1.5137,226.86,226.8,0.12549]
[1734049008452,0.65926895,226.85,226.8,0.12549]
[1734049008740,8.21708814,226.87,226.8,8.34257814]
[1734049009309,12.82187505,226.89,226.82,12.94736505]
[1734049009511,12.82187505,226.9,226.83,12.94736505]
[1734049009812,0.65926895,226.89,226.83,0.12549]
[1734049010331,0.65926895,226.89,226.83,12.94736505]
[1734049012327,0.65926895,226.9,226.83,12.94736505]
[1734049012530,13.481144,226.9,226.83,12.94736505]
[1734049012734,0.65926895,226.9,226.84,12.82187505]
[1734049012910,0.65926895,226.9,226.85,0.12549]
[1734049013110,12.82187505,226.93,226.87,0.12549]
[1734049013324,0.65926895,226.94,226.87,12.94736505]
[1734049013628,12.82187505,226.98,226.91,12.82187505]
[1734049013834,0.65926895,226.97,226.91,12.82187505]
[1734049014334,0.65926895,226.97,226.9,12.82187505]
[1734049014335,13.481144,226.97,226.9,12.82187505]
[1734049014542,13.481144,226.97,226.91,0.12549]
[1734049014944,0.65926895,226.97,226.91,12.94736505]
[1734049015449,2.18086895,227.02,226.93,0.12549]
[1734049015648,12.82187505,227.0,226.93,12.94736505]
[1734049015844,2.18086895,227.02,226.94,12.82187505]
[1734049015845,12.82187505,227.01,226.94,12.82187505]
[1734049016037,0.65926895,227.01,226.95,0.12549]
[1734049016243,0.65926895,227.01,226.97,0.12549]
[1734049016959,0.65926895,227.01,226.97,12.94736505]
[1734049017134,0.65926895,227.03,226.97,12.94736505]
[1734049017343,12.82187505,227.02,226.97,0.12549]
[1734049017650,13.481144,227.01,226.94,12.82187505]
[1734049018926,12.82187505,226.98,226.91,12.94736505]
[1734049019126,12.82187505,227.0,226.93,12.82187505]
[1734049019355,0.65926895,226.99,226.93,12.82187505]
[1734049019729,0.65926895,226.99,226.94,12.82187505]
[1734049020168,0.65926895,226.99,226.95,0.12549]
[1734049020461,12.5142,227.09,226.97,12.82187505]
[1734049020462,12.82187505,227.04,226.97,12.82187505]
[1734049020666,13.481144,227.03,226.96,12.82187505]
[1734049022245,12.82187505,227.02,226.95,12.94736505]
[1734049022553,0.65926895,227.01,226.95,12.94736505]
[1734049023174,0.65926895,227.01,226.96,12.82187505]
[1734049023334,0.65926895,227.06,227.0,12.82187505]
[1734049023535,0.65926895,227.06,227.04,12.82187505]
[1734049023854,0.65926895,227.1,227.05,12.82187505]
[1734049024367,0.65926895,227.1,227.06,12.82187505]
[1734049024677,0.65926895,227.12,227.06,12.82187505]
[1734049024959,13.481144,227.12,227.05,12.82187505]
[1734049026848,0.65926895,227.12,227.07,12.82187505]
[1734049027041,0.65926895,227.13,227.07,12.82187505]
[1734049027363,0.65926895,227.14,227.08,12.82187505]
[1734049028162,13.481144,227.14,227.07,12.82187505]
[1734049029235,13.481144,227.14,227.06,0.12549]
[1734049029236,0.65926895,227.14,227.08,12.94736505]
[1734049029436,0.65926895,227.14,227.09,12.82187505]
[1734049029639,0.65926895,227.14,227.08,12.82187505]
[1734049029833,0.65926895,227.14,227.09,0.12549]
[1734049030231,12.82187505,227.15,227.09,0.12549]
[1734049030761,13.481144,227.14,227.07,12.82187505]
[1734049030964,12.82187505,227.13,227.06,12.82187505]
[1734049031164,12.82187505,227.11,227.04,12.82187505]
[1734049031378,0.65926895,227.1,227.04,12.82187505]
[1734049032038,0.65926895,227.1,227.06,12.82187505]
[1734049032238,12.82187505,227.15,227.08,12.82187505]
[1734049032439,0.65926895,227.14,227.08,12.82187505]
[1734049033040,12.82187505,227.15,227.08,12.82187505]
[1734049033263,0.65926895,227.14,227.09,12.82187505]
[1734049033449,0.65926895,227.15,227.09,12.82187505]
[1734049034647,0.65926895,227.15,227.1,12.82187505]
[1734049034842,1.5137,227.19,227.1,12.82187505]
[1734049034843,12.82187505,227.18,227.1,12.82187505]
[1734049035053,0.65926895,227.17,227.11,12.82187505]
[1734049035467,13.481144,227.21,227.13,12.82187505]
[1734049035654,13.481144,227.21,227.14,12.82187505]
[1734049036341,13.481144,227.21,227.13,12.82187505]
[1734049036750,12.82187505,227.19,227.12,12.94736505]
[1734049036952,0.65926895,227.18,227.12,12.94736505]
[1734049037560,12.82187505,227.16,227.09,12.82187505]
[1734049037763,13.481144,227.15,227.08,12.82187505]
[1734049038047,12.82187505,227.13,227.05,12.82187505]
[1734049038261,0.65926895,227.12,227.06,12.82187505]
[1734049039674,0.65926895,227.12,227.04,12.82187505]
[1734049039675,12.82187505,227.11,227.04,12.82187505]
[1734049039875,0.65926895,227.1,227.04,12.82187505]
[1734049040754,13.481144,227.1,227.03,12.82187505]
[1734049040955,12.82187505,227.07,227.0,12.82187505]
[1734049041164,12.82187505,227.05,226.98,12.82187505]
[1734049041370,0.65926895,227.04,226.98,12.82187505]
[1734049041874,12.82187505,227.07,227.0,12.82187505]
[1734049042170,12.82187505,227.08,227.01,12.82187505]
[1734049042376,0.65926895,227.07,227.01,12.82187505]
[1734049042573,0.65926895,227.07,226.94,0.66064818]
[1734049042765,0.65926895,227.07,227.02,12.82187505]
[1734049043076,0.65926895,227.07,227.01,12.82187505]
[1734049044162,0.65926895,227.07,226.99,12.82187505]
[1734049044163,13.481144,227.07,226.99,12.82187505]
[1734049045278,0.65926895,227.07,227.01,12.82187505]
[1734049046180,0.65926895,227.07,227.0,12.82187505]
[1734049046181,13.481144,227.07,227.0,12.82187505]
[1734049046564,0.65926895,227.07,227.0,12.82187505]
[1734049046763,12.82187505,227.06,226.98,12.82187505]
[1734049046962,0.65926895,227.05,226.99,12.82187505]
[1734049047464,13.481144,227.05,226.97,12.82187505]
[1734049047670,12.82187505,227.04,226.97,12.82187505]
[1734049047855,0.65926895,227.03,226.97,12.82187505]
[1734049048863,12.82187505,227.0,226.93,12.82187505]
[1734049049075,0.65926895,226.99,226.93,12.82187505]
[1734049050077,0.65926895,226.99,226.94,12.82187505]
[1734049050271,0.65926895,227.0,226.94,12.82187505]
[1734049051569,12.82187505,226.99,226.91,20.0]
[1734049051762,12.82187505,226.97,226.9,12.82187505]
[1734049052083,11.0124,227.02,226.89,12.82187505]
[1734049052084,13.481144,226.96,226.89,12.82187505]
[1734049052258,12.82187505,226.95,226.88,12.82187505]
[1734049052459,13.481144,226.94,226.87,12.82187505]
[1734049052671,0.65926895,226.94,226.88,12.82187505]
[1734049054063,2.21206895,226.97,226.91,12.82187505]
[1734049054267,2.21206895,226.97,226.93,12.82187505]
[1734049054778,2.21206895,226.97,226.92,12.82187505]
[1734049054984,2.21206895,226.97,226.91,12.82187505]
[1734049055283,15.033944,226.97,226.9,12.82187505]
[1734049055580,15.033944,226.97,226.89,12.82187505]
[1734049055965,15.033944,226.97,226.9,0.12549]
[1734049056377,15.033944,226.97,226.9,12.82187505]
[1734049056578,2.21206895,226.97,226.91,12.82187505]
[1734049056762,1.5528,226.97,226.91,12.82187505]
[1734049056957,0.65926895,226.96,226.91,12.82187505]
[1734049057659,2.21206895,226.97,226.91,12.82187505]
[1734049058768,0.65926895,226.98,226.92,12.82187505]
[1734049058969,12.82187505,227.0,226.92,12.82187505]
[1734049059169,0.65926895,226.99,226.92,12.82187505]
[1734049059370,13.481144,226.99,226.91,12.82187505]
[1734049059570,13.481144,227.02,226.94,12.82187505]
[1734049059783,0.65926895,227.02,226.96,12.82187505]
[1734049059982,0.65926895,227.03,226.97,12.82187505]
[1734049060379,0.65926895,227.03,226.96,12.82187505]
[1734049061495,12.82187505,227.01,226.93,12.82187505]
[1734049061693,6.1183,227.04,226.93,20.0]
[1734049061694,13.481144,227.0,226.93,20.0]
[1734049061992,13.481144,227.0,226.92,12.94736505]
[1734049062170,12.82187505,226.99,226.92,0.12549]
[1734049062373,0.65926895,226.98,226.92,0.12549]
[1734049063173,0.65926895,226.98,226.92,12.94736505]
[1734049063365,0.65926895,226.99,226.92,12.94736505]
[1734049065796,12.82187505,227.0,226.92,12.94736505]
[1734049065986,0.65926895,226.99,226.92,12.94736505]
[1734049067289,12.82187505,226.96,226.89,12.82187505]
[1734049067488,18.94017505,227.04,226.86,20.0]
[1734049067489,12.82187505,226.94,226.87,12.82187505]
[1734049067711,12.82187505,226.92,226.85,12.82187505]
[1734049068003,0.65926895,226.91,226.85,12.82187505]
[1734049069900,13.481144,226.91,226.83,12.82187505]
[1734049070195,12.82187505,226.9,226.82,12.82187505]
[1734049070375,12.82187505,226.88,226.81,12.82187505]
[1734049070570,0.65926895,226.87,226.81,12.82187505]
[1734049070779,12.82187505,226.86,226.79,12.82187505]
[1734049070976,12.82187505,226.87,226.8,12.82187505]
[1734049071182,0.65926895,226.86,226.8,12.82187505]
[1734049072701,12.82187505,226.85,226.78,12.82187505]
[1734049072877,13.481144,226.84,226.77,12.82187505]
[1734049074487,0.65926895,226.84,226.78,12.82187505]
[1734049074689,13.481144,226.84,226.77,12.82187505]
[1734049075592,13.481144,226.84,226.78,12.82187505]
[1734049077396,13.481144,226.84,226.75,20.0]
[1734049077397,12.82187505,226.86,226.79,12.82187505]
[1734049077575,1.6027,226.88,226.82,12.82187505]
[1734049077778,1.6027,226.88,226.84,12.94736505]
[1734049078276,0.65926895,226.94,226.87,12.82187505]
[1734049078277,13.481144,226.94,226.87,12.82187505]
[1734049078473,13.481144,226.94,226.86,0.12549]
[1734049078474,12.82187505,226.92,226.86,0.12549]
[1734049079490,12.82187505,226.91,226.86,0.12549]
[1734049079894,12.82187505,226.91,226.85,0.12549]
[1734049080081,0.65926895,226.9,226.84,12.82187505]
[1734049080279,12.82187505,226.92,226.85,12.94736505]
[1734049080474,12.82187505,226.93,226.86,12.82187505]
[1734049080675,0.65926895,226.92,226.86,12.82187505]
[1734049081400,13.481144,226.94,226.88,12.82187505]
[1734049081599,13.481144,226.94,226.87,12.94736505]
[1734049082589,12.82187505,226.94,226.87,12.94736505]
[1734049083191,13.481144,226.94,226.87,12.94736505]
[1734049083592,12.82187505,226.92,226.87,0.12549]
[1734049083795,12.82187505,226.93,226.87,0.12549]
[1734049083991,12.82187505,226.93,226.87,12.94736505]
[1734049084392,13.481144,226.94,226.87,12.94736505]
[1734049085405,12.82187505,226.93,226.87,0.12549]
[1734049087916,8.1378,226.95,226.87,0.12549]
[1734049087917,13.481144,226.92,226.87,0.12549]
[1734049088115,12.82187505,226.92,226.87,0.12549]
[1734049088315,12.82187505,226.93,226.87,0.12549]
[1734049089911,0.65926895,226.94,226.87,12.94736505]
[1734049089912,13.481144,226.94,226.87,12.94736505]
[1734049092288,0.65926895,226.99,226.93,12.82187505]
[1734049092499,0.65926895,226.99,226.94,12.82187505]
[1734049092897,13.481144,227.0,226.94,12.82187505]
[1734049093304,0.65926895,227.0,226.95,12.82187505]
[1734049093528,7.7801,227.01,226.95,12.82187505]
[1734049093711,8.43936895,227.01,226.95,12.82187505]
[1734049094214,1.546,227.01,226.96,12.82187505]
[1734049094695,0.65926895,227.0,226.96,12.82187505]
[1734049094890,1.546,227.01,226.96,12.82187505]
[1734049095213,1.546,227.01,226.95,12.82187505]
[1734049095418,1.546,227.01,226.96,12.82187505]
[1734049095614,13.481144,227.05,226.98,12.82187505]
[1734049095817,20.58657505,227.06,226.99,12.94736505]
[1734049096115,0.65926895,227.09,226.99,12.94736505]
[1734049096116,13.481144,227.09,227.02,12.82187505]
[1734049096912,12.82187505,227.08,227.01,12.82187505]
[1734049097094,0.65926895,227.07,227.01,12.82187505]
[1734049097410,12.82187505,227.08,227.01,12.82187505]
[1734049097614,12.82187505,227.08,226.99,0.12549]
[1734049097615,12.82187505,227.09,227.02,12.82187505]
[1734049097916,13.481144,227.08,227.01,12.82187505]
[1734049099120,13.481144,227.08,226.98,0.12549]
[1734049099121,12.82187505,227.03,226.98,0.12549]
[1734049099299,0.65926895,227.02,226.97,0.12549]
[1734049099621,12.82187505,227.03,226.97,0.12549]
[1734049099823,0.65926895,227.02,226.97,0.12549]
[1734049100128,12.82187505,227.03,226.97,0.12549]
[1734049100300,12.82187505,227.04,226.97,12.94736505]
[1734049100618,12.82187505,227.05,226.98,12.82187505]
[1734049100819,0.65926895,227.04,226.99,12.82187505]
[1734049101812,0.65926895,227.05,226.99,12.82187505]
[1734049102118,13.481144,227.05,226.98,12.82187505]
[1734049103497,12.82187505,226.99,226.89,1.6251]
[1734049103700,13.481144,226.98,226.91,12.82187505]